bitfinex-derivatives/quotes_BTCF0:USTF0_20250630
["timestamp","ask_amount","ask_price","bid_price","bid_amount"]
[1751243373876,1.71591278,108740.0,108730.0,0.7724781]
[1751243374579,1.86302598,108740.0,108730.0,0.7724781]
[1751243377081,1.86302598,108740.0,108730.0,0.5713267]
[1751243377281,1.92772598,108740.0,108730.0,0.7724781]
[1751243378883,1.89482598,108740.0,108730.0,0.7724781]
[1751243379782,1.89482598,108740.0,108730.0,0.5713267]
[1751243379981,1.89482598,108740.0,108730.0,0.7724781]
[1751243380181,1.89482598,108740.0,108730.0,0.4116781]
[1751243380589,1.89482598,108740.0,108730.0,0.2105267]
[1751243380782,1.89482598,108740.0,108730.0,0.4116781]
[1751243380982,1.92782598,108740.0,108730.0,0.3482781]
[1751243382086,1.92782598,108740.0,108730.0,0.3783781]
[1751243383086,1.92782598,108740.0,108730.0,0.4115781]
[1751243389291,1.92782598,108740.0,108730.0,0.3814781]
[1751243389793,1.92782598,108740.0,108730.0,0.1471267]
[1751243389983,1.92782598,108740.0,108730.0,0.3482781]
[1751243392985,1.78071278,108740.0,108730.0,0.7090781]
[1751243394192,1.92781668,108740.0,108730.0,0.7090781]
[1751243395392,1.78071278,108740.0,108730.0,0.7090781]
[1751243395991,0.92311774,108740.0,108730.0,0.7090781]
[1751243396185,1.60827774,108740.0,108730.0,0.7417781]
[1751243396394,1.00935774,108740.0,108730.0,0.8068781]
[1751243397493,0.98496,108740.0,108730.0,0.8068781]
[1751243398294,1.00960966,108740.0,108730.0,0.8068781]
[1751243398894,0.98496,108740.0,108730.0,0.8068781]
[1751243401802,0.006,108740.0,108730.0,1.4055581]
[1751243404604,0.006,108740.0,108730.0,1.2044067]
[1751243404809,0.006,108740.0,108730.0,1.4055581]
[1751243405907,0.15044,108750.0,108740.0,0.1471039]
[1751243406110,0.15044,108750.0,108740.0,0.7720553]
[1751243406305,0.15044,108750.0,108740.0,0.5709039]
[1751243406505,0.15044,108750.0,108740.0,0.7720553]
[1751243407009,0.15344,108750.0,108740.0,0.7720553]
[1751243407918,0.003,108750.0,108740.0,0.7720553]
[1751243409015,0.003,108750.0,108740.0,0.4112553]
[1751243409216,0.5649514,108750.0,108740.0,0.1471039]
[1751243409514,0.428,108750.0,108740.0,0.1471039]
[1751243409914,0.44889262,108750.0,108740.0,0.3482553]
[1751243410313,0.44889262,108750.0,108740.0,0.1471039]
[1751243410514,0.44889262,108750.0,108740.0,0.3482553]
[1751243412417,0.59598302,108750.0,108740.0,0.3482553]
[1751243415819,0.44889262,108750.0,108740.0,0.3482553]
[1751243416620,0.59598302,108750.0,108740.0,0.3482553]
[1751243418114,0.66953856,108750.0,108740.0,0.3482553]
[1751243418922,0.52244816,108750.0,108740.0,0.3482553]
[1751243419422,0.66953856,108750.0,108740.0,0.3482553]
[1751243421322,0.66953856,108750.0,108740.0,0.1471039]
[1751243421516,0.1471039,108740.0,108730.0,0.147106]
[1751243421717,0.147131,108720.0,108710.0,0.1839189]
[1751243421921,1.4571224,108720.0,108710.0,0.1839189]
[1751243422119,1.5512224,108720.0,108710.0,0.1839189]
[1751243422420,1.42362654,108720.0,108710.0,0.3850703]
[1751243422724,1.06282654,108720.0,108710.0,0.3850703]
[1751243422915,1.06282654,108720.0,108710.0,0.1839189]
[1751243423114,1.06282654,108720.0,108710.0,0.3870703]
[1751243423314,1.42362654,108720.0,108710.0,0.3870703]
[1751243425426,1.27649554,108720.0,108710.0,0.3870703]
[1751243425624,1.20294,108720.0,108710.0,0.3870703]
[1751243426124,0.0941,108720.0,108710.0,0.3870703]
[1751243426318,0.032,108720.0,108710.0,0.7478703]
[1751243426516,0.88257554,108730.0,108720.0,0.147131]
[1751243426822,0.83962,108730.0,108720.0,0.7090824]
[1751243427025,0.83962,108730.0,108720.0,0.7719824]
[1751243427326,0.24214,108730.0,108720.0,0.7719824]
[1751243428023,0.21054,108730.0,108720.0,0.9731338]
[1751243428228,0.18024,108730.0,108720.0,0.9731338]
[1751243429542,0.0306,108730.0,108720.0,0.7719824]
[1751243430227,0.10415554,108730.0,108720.0,0.7719824]
[1751243432231,0.10415554,108730.0,108720.0,0.570831]
[1751243432529,0.10415554,108730.0,108720.0,0.9731338]
[1751243433132,0.10415554,108730.0,108720.0,0.7719824]
[1751243433528,0.0306,108730.0,108720.0,0.7719824]
[1751243434332,0.10415554,108730.0,108720.0,0.7719824]
[1751243435132,0.0306,108730.0,108720.0,0.570831]
[1751243435333,0.10415554,108730.0,108720.0,0.7719824]
[1751243436233,0.25127294,108730.0,108720.0,0.7719824]
[1751243436535,0.25127294,108730.0,108720.0,0.7090824]
[1751243436729,0.31527294,108730.0,108720.0,0.7090824]
[1751243438135,0.31527294,108730.0,108720.0,0.3482824]
[1751243438136,0.67607294,108730.0,108720.0,0.3482824]
[1751243438832,0.67607294,108730.0,108720.0,0.147131]
[1751243439337,0.95078784,108730.0,108720.0,0.1471309]
[1751243441228,0.74963644,108730.0,108720.0,0.1471309]
[1751243441425,0.74963644,108730.0,108720.0,0.3482823]
[1751243441931,0.74963644,108730.0,108720.0,0.1471309]
[1751243442132,0.74963644,108730.0,108720.0,0.3482823]
[1751243442332,0.74963644,108730.0,108720.0,0.1471309]
[1751243442739,0.74963644,108730.0,108720.0,0.3482823]
[1751243443636,0.74963644,108730.0,108720.0,0.1471309]
[1751243445340,0.74963644,108730.0,108710.0,0.4586383]
[1751243445341,0.1471309,108720.0,108710.0,0.4586383]
[1751243445538,1.3168909,108720.0,108710.0,0.4586383]
[1751243445932,1.3168909,108720.0,108710.0,0.4218529]
[1751243446743,1.5548272,108720.0,108710.0,0.1471445]
[1751243446939,0.1471444,108710.0,108700.0,0.22164552]
[1751243447131,1.1961444,108710.0,108700.0,0.18485642]
[1751243447639,1.1961444,108710.0,108700.0,0.38600782]
[1751243447936,1.1961444,108710.0,108700.0,0.38900782]
[1751243448540,1.1961444,108710.0,108700.0,0.18885642]
[1751243449343,1.26969994,108710.0,108700.0,0.18885642]
[1751243449633,1.47085134,108710.0,108700.0,0.18885642]
[1751243449836,1.47085134,108710.0,108700.0,0.39000782]
[1751243449837,1.26969994,108710.0,108700.0,0.39000782]
[1751243450338,1.1961444,108710.0,108700.0,0.39000782]
[1751243451240,1.26969994,108710.0,108700.0,0.18885642]
[1751243451441,1.26969994,108710.0,108700.0,0.39000782]
[1751243451743,0.28483554,108710.0,108700.0,0.75080782]
[1751243452045,0.77752,108710.0,108700.0,0.81320782]
[1751243453032,0.13455554,108720.0,108710.0,0.1471445]
[1751243453233,0.31468644,108720.0,108710.0,0.3482959]
[1751243453437,1.06076644,108720.0,108710.0,0.4113959]
[1751243453641,0.91363554,108720.0,108710.0,0.4113959]
[1751243454444,0.88313554,108720.0,108710.0,0.4113959]
[1751243456246,0.22247554,108720.0,108710.0,0.7721959]
[1751243456448,0.81871554,108720.0,108710.0,0.8022959]
[1751243456752,0.07355554,108720.0,108710.0,0.8042959]
[1751243457050,0.81871554,108720.0,108710.0,0.8042959]
[1751243457242,0.22247554,108720.0,108710.0,0.8042959]
[1751243457442,0.81871554,108720.0,108710.0,0.8042959]
[1751243457643,0.07355554,108730.0,108720.0,0.1471309]
[1751243457852,0.36959294,108730.0,108720.0,0.9713337]
[1751243458037,0.22067294,108730.0,108720.0,0.7701823]
[1751243458348,0.96575294,108730.0,108720.0,0.7701823]
[1751243458652,0.99755294,108730.0,108720.0,0.7701823]
[1751243459048,1.03045294,108730.0,108720.0,0.7701823]
[1751243460138,0.88333554,108730.0,108720.0,0.7701823]
[1751243460449,0.88333554,108730.0,108720.0,0.7399823]
[1751243460643,1.03045294,108730.0,108720.0,0.5079309]
[1751243460844,1.59240434,108730.0,108720.0,0.1471309]
[1751243461040,0.1471309,108720.0,108700.0,0.59966052]
[1751243461242,0.8920645,108710.0,108700.0,0.58244172]
[1751243461547,0.9574645,108710.0,108700.0,0.58244172]
[1751243462247,1.3182645,108710.0,108700.0,0.18485252]
[1751243462448,1.5194159,108710.0,108700.0,0.18485252]
[1751243462852,1.5194159,108710.0,108700.0,0.18785252]
[1751243463249,1.3182645,108710.0,108700.0,0.18785252]
[1751243463751,1.61823604,108710.0,108700.0,0.00391992]
[1751243463952,1.61823604,108710.0,108700.0,0.00491992]
[1751243464456,1.61823604,108710.0,108700.0,0.15207792]
[1751243465047,1.61807604,108710.0,108700.0,0.15207792]
[1751243465547,0.67216464,108710.0,108700.0,0.15207792]
[1751243465747,1.3180645,108710.0,108700.0,0.15207792]
[1751243466454,1.3915141,108710.0,108700.0,0.15207792]
[1751243466754,1.3181445,108710.0,108700.0,0.15207792]
[1751243467255,0.4262,108710.0,108700.0,0.15207792]
[1751243467446,0.3608,108710.0,108700.0,0.35322932]
[1751243467647,1.10552,108710.0,108700.0,0.41642932]
[1751243468849,1.2526645,108710.0,108700.0,0.41642932]
[1751243469055,0.74464,108710.0,108700.0,0.41642932]
[1751243470352,0.8180896,108710.0,108700.0,0.41642932]
[1751243470747,0.0734496,108710.0,108700.0,0.77722932]
[1751243470954,0.2224096,108710.0,108700.0,0.77722932]
[1751243471151,0.8180096,108710.0,108700.0,0.77722932]
[1751243473059,0.2224096,108710.0,108700.0,0.77722932]
[1751243478773,0.21326,108710.0,108700.0,0.77722932]
[1751243479176,0.2867096,108710.0,108700.0,0.77722932]
[1751243479373,0.21326,108710.0,108700.0,0.77722932]
[1751243479575,0.18106,108710.0,108700.0,0.77722932]
[1751243480069,0.3282045,108710.0,108700.0,0.51287792]
[1751243480275,1.44289556,108710.0,108700.0,0.00491992]
[1751243480477,1.13310516,108710.0,108700.0,0.00491992]
[1751243480771,1.89563331,108710.0,108700.0,0.00491992]
[1751243480969,1.94448191,108710.0,108700.0,0.00491992]
[1751243481273,1.89562005,108710.0,108700.0,0.00491992]
[1751243481882,1.89562005,108710.0,108700.0,0.00191992]
[1751243482078,0.76644465,108710.0,108700.0,0.14807792]
[1751243482270,1.40820899,108710.0,108700.0,0.14807792]
[1751243482472,1.70135247,108710.0,108700.0,0.14807792]
[1751243482674,1.60936039,108710.0,108700.0,0.14807792]
[1751243482873,1.5174359,108710.0,108700.0,0.14807792]
[1751243483271,1.3162845,108710.0,108700.0,0.14807792]
[1751243484278,1.5174359,108710.0,108700.0,0.14807792]
[1751243484475,1.5174359,108710.0,108700.0,0.00091992]
[1751243485080,0.1839702,108690.0,108680.0,0.1471844]
[1751243485280,0.9279702,108690.0,108680.0,0.1471844]
[1751243485474,0.1471848,108680.0,108670.0,0.60760647]
[1751243485679,0.1775848,108680.0,108670.0,0.20207157]
[1751243485873,0.6027848,108680.0,108670.0,0.20207157]
[1751243486081,0.8039362,108680.0,108670.0,0.00092017]
[1751243486683,0.62110348,108680.0,108670.0,0.00092017]
[1751243486883,0.69446706,108680.0,108670.0,0.00092017]
[1751243487080,0.89561846,108680.0,108670.0,0.00092017]
[1751243487278,0.89561846,108680.0,108670.0,0.14811847]
[1751243487279,0.69446706,108680.0,108670.0,0.14811847]
[1751243487583,0.69446706,108680.0,108670.0,0.00092017]
[1751243488084,0.69446706,108680.0,108670.0,0.00292017]
[1751243489587,0.69446706,108680.0,108670.0,0.15011847]
[1751243489986,0.69446706,108680.0,108670.0,0.00292017]
[1751243490986,0.89561846,108680.0,108670.0,0.00292017]
[1751243492288,0.89561846,108680.0,108670.0,0.15011847]
[1751243493482,0.69446706,108680.0,108670.0,0.15011847]
[1751243493689,0.89561846,108680.0,108670.0,0.15011847]
[1751243494288,0.82225488,108680.0,108670.0,0.15011847]
[1751243494989,0.62110348,108680.0,108670.0,0.15011847]
[1751243495191,0.82225488,108680.0,108670.0,0.15011847]
[1751243495383,0.82225488,108680.0,108670.0,0.00292017]
[1751243495984,0.82225488,108680.0,108670.0,0.15011837]
[1751243496184,0.82225488,108680.0,108670.0,0.00292017]
[1751243497390,0.92831671,108680.0,108670.0,0.00292017]
[1751243499188,0.72716531,108680.0,108670.0,0.00292017]
[1751243499391,0.92831671,108680.0,108670.0,0.00292017]
[1751243500191,0.92831671,108680.0,108670.0,0.15011847]
[1751243500489,0.72716531,108680.0,108670.0,0.15011847]
[1751243500884,0.92831671,108680.0,108670.0,0.00292017]
[1751243501587,1.00032882,108680.0,108670.0,0.00292017]
[1751243503390,1.00032882,108680.0,108670.0,0.15011867]
[1751243503792,1.74340882,108680.0,108670.0,0.15011867]
[1751243505090,1.74336882,108680.0,108670.0,0.15011867]
[1751243505396,1.54221742,108680.0,108670.0,0.15011867]
[1751243505595,1.54221742,108680.0,108670.0,0.00292017]
[1751243505894,1.74336882,108680.0,108670.0,0.15011867]
[1751243508297,1.54221742,108680.0,108670.0,0.15011867]
[1751243508492,0.79917742,108680.0,108670.0,0.15011867]
[1751243508692,1.54209742,108680.0,108670.0,0.15011867]
[1751243508890,1.54209742,108680.0,108670.0,0.35127007]
[1751243509294,1.54209742,108680.0,108670.0,0.15011867]
[1751243509888,0.79917742,108680.0,108670.0,0.15011867]
[1751243510090,0.98035569,108680.0,108670.0,0.71207007]
[1751243510294,0.98035569,108680.0,108670.0,0.77477007]
[1751243510498,0.83317079,108680.0,108670.0,0.77477007]
[1751243510699,0.83317079,108680.0,108670.0,0.57361867]
[1751243510899,0.83317079,108680.0,108670.0,0.77477007]
[1751243511196,0.98035569,108680.0,108670.0,0.77477007]
[1751243511895,0.83317079,108680.0,108670.0,0.77477007]
[1751243512096,0.01831868,108680.0,108670.0,0.77477007]
[1751243512400,0.74284,108680.0,108670.0,0.77477007]
[1751243512700,0.5447752,108690.0,108680.0,0.1471849]
[1751243512909,1.2875752,108690.0,108680.0,0.4464363]
[1751243513302,1.30665569,108690.0,108680.0,0.4464363]
[1751243513599,1.26981189,108690.0,108680.0,0.4464363]
[1751243514201,1.12264049,108690.0,108680.0,0.4464363]
[1751243514396,1.12264049,108690.0,108680.0,0.2452849]
[1751243514602,0.37988049,108690.0,108680.0,0.4464363]
[1751243514802,1.12264049,108690.0,108680.0,0.4464363]
[1751243515103,1.26981189,108690.0,108680.0,0.4464363]
[1751243517207,0.90901189,108690.0,108680.0,0.4464363]
[1751243517406,1.26981189,108690.0,108680.0,0.4464363]
[1751243520908,1.26981189,108690.0,108680.0,0.4132363]
[1751243521108,0.90873189,108690.0,108680.0,0.4132363]
[1751243521506,0.90873189,108690.0,108680.0,0.2120849]
[1751243521804,0.90873189,108690.0,108680.0,0.4132363]
[1751243523612,0.90873189,108690.0,108680.0,0.2120849]
[1751243523908,0.90873189,108690.0,108680.0,0.4132363]
[1751243530414,0.90873189,108690.0,108680.0,0.7740363]
[1751243530415,0.01908049,108690.0,108680.0,0.7740363]
[1751243530618,0.14784,108690.0,108680.0,0.7740363]
[1751243531518,0.16457312,108690.0,108680.0,0.7740363]
[1751243531920,0.14784,108690.0,108680.0,0.7740363]
[1751243532516,1.18916,108700.0,108690.0,0.1471714]
[1751243532819,1.56992,108700.0,108690.0,0.4430228]
[1751243533017,1.7170779,108700.0,108690.0,0.4430228]
[1751243533523,1.56992,108700.0,108690.0,0.4430228]
[1751243533715,0.90186383,108700.0,108690.0,0.4430228]
[1751243533912,1.04970383,108700.0,108690.0,0.9727742]
[1751243534220,1.04902173,108700.0,108690.0,0.6014714]
[1751243534518,1.19686173,108700.0,108690.0,0.8026228]
[1751243535422,1.04970383,108700.0,108690.0,0.8026228]
[1751243535721,1.04970383,108700.0,108690.0,0.8046228]
[1751243536221,1.19686173,108700.0,108690.0,0.8046228]
[1751243536417,1.04970383,108700.0,108690.0,0.8046228]
[1751243536617,1.04970383,108700.0,108690.0,0.8056228]
[1751243537119,1.19686173,108700.0,108690.0,0.8056228]
[1751243537315,1.04970383,108700.0,108690.0,0.7746228]
[1751243537521,1.04970383,108700.0,108690.0,0.8468714]
[1751243538221,1.06807978,108700.0,108690.0,0.8468714]
[1751243539918,0.09187978,108700.0,108690.0,0.7746228]
[1751243540123,0.01646652,108710.0,108700.0,0.1471579]
[1751243540323,0.21405957,108720.0,108710.0,0.1471443]
[1751243540527,0.0605,108720.0,108710.0,0.7090957]
[1751243540725,0.0931,108720.0,108710.0,0.7090957]
[1751243541525,0.109988,108720.0,108710.0,0.7090957]
[1751243542220,0.851068,108720.0,108710.0,0.7090957]
[1751243542821,0.9796997,108720.0,108710.0,0.7090957]
[1751243543017,0.9796997,108720.0,108710.0,0.7110957]
[1751243544424,0.3538197,108720.0,108710.0,0.7110957]
[1751243544624,0.9469797,108720.0,108710.0,0.7743957]
[1751243545225,0.9167797,108720.0,108710.0,0.7743957]
[1751243546222,0.9494797,108720.0,108710.0,0.7743957]
[1751243546426,0.9818797,108720.0,108710.0,0.7743957]
[1751243546729,0.9818797,108720.0,108710.0,0.7434957]
[1751243547629,0.9818797,108720.0,108710.0,0.7110957]
[1751243548629,1.1290105,108720.0,108710.0,0.7110957]
[1751243549425,0.9818797,108720.0,108710.0,0.5099443]
[1751243549633,0.9818797,108720.0,108710.0,0.7110957]
[1751243550629,0.9818797,108720.0,108710.0,0.3502957]
[1751243551931,0.9818797,108720.0,108710.0,0.1491443]
[1751243552132,0.9818797,108720.0,108710.0,0.3502957]
[1751243558239,1.85632243,108720.0,108710.0,0.1491443]
[1751243558433,1.65419716,108720.0,108710.0,0.1491443]
[1751243558631,1.45304576,108720.0,108710.0,0.1491443]
[1751243559634,1.45304576,108720.0,108710.0,0.3502957]
[1751243559834,1.3611788,108720.0,108710.0,0.3502957]
[1751243560437,1.3611788,108720.0,108710.0,0.1491443]
[1751243563543,1.6358477,108720.0,108710.0,0.1491444]
[1751243563737,2.03326937,108720.0,108710.0,0.002]
[1751243564144,0.1471443,108710.0,108700.0,0.1839399]
[1751243564343,0.7750957,108710.0,108700.0,0.1839399]
[1751243564535,0.87136597,108710.0,108700.0,0.1839399]
[1751243564739,0.87136597,108710.0,108700.0,0.1471506]
[1751243564740,0.74373207,108710.0,108700.0,0.1471506]
[1751243565042,0.94488347,108710.0,108700.0,0.1471506]
[1751243565543,0.74373207,108710.0,108700.0,0.1511506]
[1751243565745,0.94488347,108710.0,108700.0,0.1511506]
[1751243566341,0.94488347,108710.0,108700.0,0.004]
[1751243566746,0.94488347,108710.0,108700.0,0.1511579]
[1751243567543,0.74373207,108710.0,108700.0,0.1511579]
[1751243568245,0.74373207,108710.0,108700.0,0.3523093]
[1751243568641,0.74373207,108710.0,108700.0,0.1501579]
[1751243568849,1.2395418,108710.0,108700.0,0.3513093]
[1751243569146,1.2395418,108710.0,108700.0,0.3483093]
[1751243569541,0.1395175,108710.0,108700.0,0.3483093]
[1751243569748,0.80524,108710.0,108700.0,0.4105093]
[1751243570844,0.267847,108720.0,108710.0,0.1471443]
[1751243571150,0.8295655,108720.0,108710.0,0.7716957]
[1751243572148,0.9766963,108720.0,108710.0,0.4118957]
[1751243572454,0.8294855,108720.0,108710.0,0.4118957]
[1751243572654,0.8294855,108720.0,108710.0,0.4425957]
[1751243573352,0.755968,108720.0,108710.0,0.4425957]
[1751243574949,0.755968,108720.0,108710.0,0.8033957]
[1751243575149,0.164048,108720.0,108710.0,0.8033957]
[1751243575348,0.755848,108720.0,108710.0,0.8033957]
[1751243577457,0.164048,108720.0,108710.0,0.8033957]
[1751243582454,0.164048,108720.0,108710.0,0.4425957]
[1751243586965,0.3111788,108720.0,108710.0,0.1481443]
[1751243587157,0.3723788,108720.0,108710.0,0.3492957]
[1751243587360,0.3723788,108720.0,108710.0,0.1481443]
[1751243587556,0.5735302,108720.0,108710.0,0.1481443]
[1751243589360,0.8076963,108720.0,108710.0,0.1471443]
[1751243589754,0.8076963,108720.0,108710.0,0.3482957]
[1751243590654,0.6605655,108720.0,108710.0,0.3482957]
[1751243590854,0.8901255,108720.0,108710.0,0.7090957]
[1751243591158,0.816608,108720.0,108710.0,0.7731957]
[1751243591558,0.816608,108720.0,108710.0,0.4123957]
[1751243592267,0.815608,108720.0,108710.0,0.4133957]
[1751243592563,0.815608,108720.0,108710.0,0.2122443]
[1751243592762,0.815608,108720.0,108710.0,0.4133957]
[1751243594362,0.9627388,108720.0,108710.0,0.3492957]
[1751243594569,1.3235388,108720.0,108710.0,0.1481443]
[1751243594868,1.3235388,108720.0,108710.0,0.3492957]
[1751243596259,0.5860188,108720.0,108710.0,0.3492957]
[1751243596461,1.3968163,108720.0,108710.0,0.3492957]
[1751243596965,1.3232988,108720.0,108710.0,0.3492957]
[1751243597166,0.815368,108720.0,108710.0,0.3492957]
[1751243597464,0.8888855,108720.0,108710.0,0.3492957]
[1751243598273,0.815368,108720.0,108710.0,0.3492957]
[1751243598458,0.90723496,108720.0,108710.0,0.3492957]
[1751243600059,1.05436576,108720.0,108710.0,0.3492957]
[1751243600762,1.41516576,108720.0,108710.0,0.3492957]
[1751243603170,1.61631716,108720.0,108710.0,0.1481443]
[1751243603363,1.61631716,108720.0,108710.0,0.001]
[1751243603764,1.62276325,108720.0,108710.0,0.001]
[1751243603965,1.62276325,108720.0,108710.0,0.1481443]
[1751243605170,1.62276325,108720.0,108710.0,0.001]
[1751243605370,0.1471443,108710.0,108700.0,0.4586603]
[1751243605570,0.6036443,108710.0,108700.0,0.4586603]
[1751243605766,0.6036443,108710.0,108700.0,0.4218716]
[1751243605968,0.6036443,108710.0,108700.0,0.2207202]
[1751243606366,0.6036443,108710.0,108700.0,0.2217202]
[1751243606567,0.6036443,108710.0,108700.0,0.1849329]
[1751243607067,0.89677808,108710.0,108700.0,0.1481463]
[1751243607772,0.69562668,108710.0,108700.0,0.1481463]
[1751243608171,0.7691934,108710.0,108700.0,0.1481463]
[1751243608371,0.67721102,108710.0,108700.0,0.1481463]
[1751243608679,0.87836242,108710.0,108700.0,0.001]
[1751243609277,0.78173482,108710.0,108700.0,0.001]
[1751243609572,0.98288622,108710.0,108700.0,0.001]
[1751243609873,0.78173482,108710.0,108700.0,0.1481579]
[1751243611178,0.78173482,108710.0,108700.0,0.001]
[1751243611875,0.98288622,108710.0,108700.0,0.001]
[1751243616084,1.08288622,108710.0,108700.0,0.001]
[1751243616282,0.1471714,108690.0,108670.0,0.30776957]
[1751243616485,0.883025,108680.0,108670.0,0.52335627]
[1751243616778,0.913525,108680.0,108670.0,0.52335627]
[1751243617280,1.274325,108680.0,108670.0,0.52535627]
[1751243618479,1.274325,108680.0,108670.0,0.52935627]
[1751243618480,1.305025,108680.0,108670.0,0.52935627]
[1751243618680,1.305025,108680.0,108670.0,0.53335627]
[1751243619782,1.335625,108680.0,108670.0,0.53335627]
[1751243620182,1.335625,108680.0,108670.0,0.50075627]
[1751243620881,1.335625,108680.0,108670.0,0.46395667]
[1751243621483,0.79704,108680.0,108670.0,0.85575667]
[1751243621685,0.69191152,108700.0,108690.0,0.1471714]
[1751243621984,1.45947152,108700.0,108690.0,0.1471714]
[1751243622280,1.52287152,108700.0,108690.0,0.1471714]
[1751243622783,0.1471714,108690.0,108680.0,0.5192132]
[1751243623180,1.48607892,108700.0,108690.0,0.1471714]
[1751243623382,1.48607892,108700.0,108690.0,0.3483228]
[1751243623574,0.85928642,108700.0,108690.0,0.3483228]
[1751243623781,1.41894642,108700.0,108690.0,0.4126228]
[1751243623976,0.64502672,108700.0,108690.0,0.4126228]
[1751243624180,1.02130462,108700.0,108690.0,0.4126228]
[1751243625086,1.02130462,108700.0,108690.0,0.4146228]
[1751243625276,1.02130462,108700.0,108690.0,0.2134714]
[1751243625478,1.02130462,108700.0,108690.0,0.4146228]
[1751243628187,0.9477379,108700.0,108690.0,0.4146228]
[1751243628588,0.9477379,108700.0,108690.0,0.1806714]
[1751243628792,0.9785379,108700.0,108690.0,0.1806714]
[1751243629777,0.61830942,108710.0,108690.0,0.5829742]
[1751243629984,0.61361112,108710.0,108700.0,0.3483093]
[1751243630292,0.21932672,108710.0,108700.0,0.4111093]
[1751243630588,0.07356672,108710.0,108700.0,0.4411093]
[1751243630787,0.21932672,108710.0,108700.0,0.4411093]
[1751243632488,0.36647112,108710.0,108700.0,0.4411093]
[1751243632999,0.21932672,108710.0,108700.0,0.4411093]
[1751243633194,0.14576,108710.0,108700.0,0.4411093]
[1751243634192,2.08802954,108720.0,108710.0,0.1471444]
[1751243634392,2.23378954,108720.0,108710.0,0.4127958]
[1751243634890,2.01308004,108720.0,108710.0,0.4127958]
[1751243635196,0.91708004,108720.0,108710.0,0.7735958]
[1751243635393,1.06480004,108720.0,108710.0,0.7735958]
[1751243635595,1.58063332,108720.0,108710.0,0.7735958]
[1751243637588,0.99123332,108720.0,108710.0,0.7735958]
[1751243638098,1.13836412,108720.0,108710.0,0.7735958]
[1751243638299,1.8195465,108720.0,108710.0,0.7735958]
[1751243639494,1.6724157,108720.0,108710.0,0.7735958]
[1751243639894,1.58043332,108720.0,108710.0,0.7735958]
[1751243640297,1.65385855,108720.0,108710.0,0.7735958]
[1751243640493,1.80098935,108720.0,108710.0,0.5724444]
[1751243640695,1.80098935,108720.0,108710.0,0.7735958]
[1751243641000,2.08836412,108720.0,108710.0,0.1471444]
[1751243641200,2.22422346,108720.0,108710.0,0.1471444]
[1751243642803,2.07709266,108720.0,108710.0,0.1471444]
[1751243643008,1.65369266,108720.0,108710.0,0.3482958]
[1751243643303,1.65289266,108720.0,108710.0,0.4118958]
[1751243644805,1.65289266,108720.0,108710.0,0.7726958]
[1751243646306,1.65289266,108720.0,108710.0,0.5715444]
[1751243646598,2.08740412,108720.0,108710.0,0.4118958]
[1751243647603,2.11870412,108720.0,108710.0,0.4118958]
[1751243647801,2.14960412,108720.0,108710.0,0.2107444]
[1751243648001,2.14960412,108720.0,108710.0,0.3805958]
[1751243649903,2.14960412,108720.0,108710.0,0.3482958]
[1751243650503,2.00247332,108720.0,108710.0,0.3482958]
[1751243651102,2.14960412,108720.0,108710.0,0.3482958]
[1751243651704,2.14960412,108720.0,108710.0,0.1471444]
[1751243651906,2.14960412,108720.0,108710.0,0.3482958]
[1751243652205,1.64167332,108720.0,108710.0,0.3482958]
[1751243652402,1.78880412,108720.0,108710.0,0.1471444]
[1751243653102,1.78880412,108720.0,108710.0,0.3482958]
[1751243655506,1.78880412,108720.0,108710.0,0.1471444]
[1751243655806,1.78880412,108720.0,108710.0,0.3482958]
[1751243656906,0.99051332,108720.0,108710.0,0.3482958]
[1751243657102,1.72596412,108720.0,108710.0,0.4113958]
[1751243657505,1.75886412,108720.0,108710.0,0.4113958]
[1751243659407,1.72596412,108720.0,108710.0,0.4113958]
[1751243659904,1.75846412,108720.0,108710.0,0.4113958]
[1751243660402,1.83188346,108720.0,108710.0,0.4113958]
[1751243661903,1.24356346,108720.0,108710.0,0.4113958]
[1751243662104,1.68455266,108720.0,108710.0,0.7721958]
[1751243662403,0.91693266,108720.0,108710.0,0.7731958]
[1751243662707,0.83879934,108730.0,108720.0,0.1471308]
[1751243662904,0.98587664,108730.0,108720.0,0.6134336]
[1751243663103,0.99999522,108730.0,108720.0,0.4122822]
[1751243663408,0.85287792,108730.0,108720.0,0.4122822]
[1751243663610,0.85287792,108730.0,108720.0,0.6134336]
[1751243665212,0.85287792,108730.0,108720.0,0.4122822]
[1751243666111,0.85287792,108730.0,108720.0,0.6134336]
[1751243666807,0.26483792,108730.0,108720.0,0.6134336]
[1751243667007,0.26483792,108730.0,108720.0,0.9742336]
[1751243667201,0.25071934,108730.0,108720.0,0.9742336]
[1751243667406,0.07341934,108730.0,108720.0,0.9742336]
[1751243667610,0.09298238,108740.0,108730.0,0.1471173]
[1751243667611,0.07441934,108740.0,108730.0,0.1471173]
[1751243667810,0.07441934,108740.0,108730.0,0.8042687]
[1751243668907,0.08869904,108740.0,108730.0,0.8042687]
[1751243669516,0.07441934,108740.0,108730.0,0.8042687]
[1751243671614,0.08831817,108740.0,108730.0,0.8042687]
[1751243671811,0.08831817,108740.0,108730.0,0.5079173]
[1751243672016,0.15311817,108740.0,108730.0,0.7090687]
[1751243674611,0.15311817,108740.0,108730.0,0.7726687]
[1751243676317,0.07969883,108740.0,108730.0,0.7726687]
[1751243676518,0.07969883,108740.0,108730.0,0.5715173]
[1751243676816,0.07969883,108740.0,108730.0,0.7726687]
[1751243677012,0.22680263,108740.0,108730.0,0.7726687]
[1751243678614,0.07969883,108740.0,108730.0,0.7726687]
[1751243679116,0.22680263,108740.0,108730.0,0.7726687]
[1751243679511,0.07969883,108740.0,108730.0,0.7726687]
[1751243680923,0.22680263,108740.0,108730.0,0.7726687]
[1751243681813,0.07969883,108740.0,108730.0,0.7726687]
[1751243685020,0.22680263,108740.0,108730.0,0.7726687]
[1751243685716,0.22680263,108740.0,108730.0,0.5715173]
[1751243685923,0.07969883,108740.0,108730.0,0.7726687]
[1751243686116,0.07969883,108740.0,108730.0,0.5390173]
[1751243686316,0.07969883,108740.0,108730.0,0.7401687]
[1751243687022,0.22680263,108740.0,108730.0,0.7090687]
[1751243687321,0.07969883,108740.0,108730.0,0.7090687]
[1751243691918,0.07969883,108740.0,108730.0,0.7741687]
[1751243692820,0.15913883,108740.0,108730.0,0.7741687]
[1751243693720,0.01489883,108740.0,108730.0,0.7741687]
[1751243693925,0.15913883,108740.0,108730.0,0.7741687]
[1751243695123,0.14524,108740.0,108730.0,0.7741687]
[1751243695525,0.21865934,108740.0,108730.0,0.7741687]
[1751243698331,0.14524,108740.0,108730.0,0.7741687]
[1751243701030,0.001,108740.0,108730.0,0.7741687]
[1751243701229,0.01445151,108750.0,108740.0,0.1471038]
[1751243701435,0.14424,108750.0,108740.0,0.8018552]
[1751243702629,0.21765934,108750.0,108740.0,0.8018552]
[1751243702831,0.14424,108750.0,108740.0,0.8018552]
[1751243703235,0.14624,108750.0,108740.0,0.8018552]
[1751243703836,0.16039527,108750.0,108740.0,0.8018552]
[1751243704830,0.16039527,108750.0,108740.0,1.3880952]